bitfinex-derivatives/quotes_BNBF0:USTF0_20241225
["timestamp","ask_amount","ask_price","bid_price","bid_amount"]
[1735088638638,2.1609164,699.94,698.72,0.28623769]
[1735088638837,2.1609164,699.93,698.72,0.28623769]
[1735088639034,2.1609164,699.92,698.72,0.28623769]
[1735088639238,2.1609164,699.91,698.72,0.28623769]
[1735088639442,2.1609164,699.9,698.72,0.28623769]
[1735088639635,2.1609164,699.89,698.72,0.28623769]
[1735088639836,2.1609164,699.88,698.72,0.28623769]
[1735088640039,0.28553073,700.45,698.72,0.28623769]
[1735088640234,2.42341034,700.44,698.72,0.28623769]
[1735088640437,1.54102094,700.43,698.72,0.28623769]
[1735088640638,2.42340847,700.42,698.72,0.28623769]
[1735088640938,2.42340847,700.41,698.72,0.28623769]
[1735088641137,2.42340847,700.4,698.72,0.28623769]
[1735088641341,2.42340847,700.39,698.72,0.28623769]
[1735088641538,2.42340989,700.38,698.72,0.28623769]
[1735088641735,2.42340989,700.37,698.72,0.28623769]
[1735088641939,2.42340989,700.36,698.72,0.28623769]
[1735088642135,2.1605582,700.35,698.72,0.28623769]
[1735088642341,2.42335107,700.34,698.72,0.28623769]
[1735088642635,2.42335107,700.33,698.72,0.28623769]
[1735088642836,2.42335107,700.32,698.72,0.28623769]
[1735088643142,2.42335107,700.31,698.72,0.28623769]
[1735088643341,2.42335107,700.3,698.72,0.28623769]
[1735088643643,2.42335107,700.29,698.72,0.28623769]
[1735088643842,2.42335107,700.28,698.72,0.28623769]
[1735088644042,2.42335107,700.27,698.72,0.28623769]
[1735088644239,2.42334551,700.26,698.72,0.28623769]
[1735088644440,2.42334551,700.25,698.72,0.28623769]
[1735088644636,2.42334551,700.24,698.72,0.28623769]
[1735088644945,2.42334551,700.23,698.72,0.28623769]
[1735088645138,2.42299476,700.22,698.72,0.28623769]
[1735088645337,2.42299476,700.21,698.72,0.28623769]
[1735088645539,2.16020745,700.2,698.72,0.28623769]
[1735088645735,2.16020745,700.19,698.72,0.28623769]
[1735088645944,2.16020745,700.18,698.72,0.28623769]
[1735088646142,0.28553888,700.43,698.72,0.28623769]
[1735088646143,2.16020745,700.17,698.72,0.28623769]
[1735088646442,2.16020745,700.16,698.72,0.28623769]
[1735088646643,2.16020745,700.15,698.72,0.28623769]
[1735088646842,2.16020745,700.14,698.72,0.28623769]
[1735088647038,2.16020745,700.13,698.72,0.28623769]
[1735088647238,2.16020745,700.12,698.72,0.28623769]
[1735088647438,2.16020745,700.11,698.72,0.28623769]
[1735088647642,2.16020745,700.1,698.72,0.28623769]
[1735088647842,2.16020745,700.09,698.72,0.28623769]
[1735088648039,1.07182841,700.39,698.72,0.28623769]
[1735088648242,2.42281901,700.38,698.72,0.28623769]
[1735088648442,2.42281901,700.37,698.72,0.28623769]
[1735088648643,2.42281901,700.36,698.72,0.28623769]
[1735088648845,2.42281901,700.35,698.72,0.28623769]
[1735088649046,2.42281901,700.34,698.72,0.28623769]
[1735088649246,2.42279687,700.33,698.72,0.28623769]
[1735088649442,2.16004591,700.32,698.72,0.28623769]
[1735088649746,2.16004591,700.31,698.72,0.28623769]
[1735088649946,2.16004591,700.3,698.72,0.28623769]
[1735088650147,2.16004591,700.29,698.72,0.28623769]
[1735088650341,2.16004591,700.28,698.72,0.28623769]
[1735088650646,2.16004591,700.27,698.72,0.28623769]
[1735088650841,2.16004591,700.26,698.72,0.28623769]
[1735088651040,2.16011213,700.25,698.72,0.28623769]
[1735088651243,2.16011213,700.24,698.72,0.28623769]
[1735088651444,0.28553888,700.43,698.72,0.28623769]
[1735088651645,2.42314672,700.42,698.72,0.28623769]
[1735088651947,2.42314672,700.41,698.72,0.28623769]
[1735088652246,2.42314672,700.4,698.72,0.28623769]
[1735088652448,2.42314561,700.39,698.72,0.28623769]
[1735088652644,2.42314561,700.38,698.72,0.28623769]
[1735088652844,2.42314561,700.37,698.72,0.28623769]
[1735088653044,2.42314561,700.36,698.72,0.28623769]
[1735088653242,0.28553888,700.43,698.72,0.28623769]
[1735088653243,0.88229312,700.35,698.72,0.28623769]
[1735088653548,0.28553888,700.43,698.72,0.28623769]
[1735088653549,2.16056918,700.34,698.72,0.28623769]
[1735088653750,2.16056918,700.33,698.72,0.28623769]
[1735088653941,2.16056918,700.32,698.72,0.28623769]
[1735088654147,2.16096534,700.31,698.72,0.28623769]
[1735088654347,2.16096534,700.3,698.72,0.28623769]
[1735088654648,2.16096534,700.29,698.72,0.28623769]
[1735088654844,2.16096534,700.28,698.72,0.28623769]
[1735088655049,2.16096534,700.27,698.72,0.28623769]
[1735088655249,2.16096534,700.26,698.72,0.28623769]
[1735088655445,2.16096534,700.25,698.72,0.28623769]
[1735088655646,2.16096534,700.24,698.72,0.28623769]
[1735088655848,2.16096534,700.23,698.72,0.28623769]
[1735088656049,2.16096534,700.22,698.72,0.28623769]
[1735088656255,2.16096534,700.21,698.72,0.28623769]
[1735088656552,2.16096534,700.2,698.72,0.28623769]
[1735088656755,2.16096534,700.19,698.72,0.28623769]
[1735088656948,2.16096534,700.18,698.72,0.28623769]
[1735088657149,2.16096534,700.17,698.72,0.28623769]
[1735088657352,2.16096534,700.16,698.72,0.28623769]
[1735088657552,2.16096534,700.15,698.72,0.28623769]
[1735088657860,2.16096534,700.14,698.72,0.28623769]
[1735088658160,2.16096534,700.13,698.72,0.28623769]
[1735088658361,2.16096534,700.12,698.72,0.28623769]
[1735088658564,0.8828509,700.11,698.72,0.28623769]
[1735088658757,2.16177567,700.1,698.72,0.28623769]
[1735088658962,2.16177567,700.09,698.72,0.28623769]
[1735088659257,2.16177567,700.08,698.72,0.28623769]
[1735088659459,2.16177567,700.07,698.72,0.28623769]
[1735088659656,0.28553888,700.43,698.72,0.28623769]
[1735088659657,2.16177567,700.06,698.72,0.28623769]
[1735088659856,2.16177567,700.05,698.72,0.28623769]
[1735088660056,2.16177567,700.04,698.72,0.28623769]
[1735088660257,2.16177567,700.03,698.72,0.28623769]
[1735088660462,2.16177567,700.02,698.72,0.28623769]
[1735088660764,2.16160781,700.01,698.72,0.28623769]
[1735088660964,2.16160781,700.0,698.72,0.28623769]
[1735088661163,2.16160781,699.99,698.72,0.28623769]
[1735088661362,2.16160781,699.98,698.72,0.28623769]
[1735088661563,2.16160781,699.97,698.72,0.28623769]
[1735088661757,2.16160781,699.96,698.72,0.28623769]
[1735088661976,2.16160781,699.95,698.72,0.28623769]
[1735088662161,2.16160781,699.94,698.72,0.28623769]
[1735088662361,2.16160781,699.93,698.72,0.28623769]
[1735088662656,2.16160781,699.92,698.72,0.28623769]
[1735088662861,2.16160781,699.91,698.72,0.28623769]
[1735088663063,2.16160781,699.9,698.72,0.28623769]
[1735088663258,2.16160781,699.89,698.72,0.28623769]
[1735088663461,2.16160781,699.88,698.72,0.28623769]
[1735088663662,2.16160781,699.87,698.72,0.28623769]
[1735088663860,2.16160781,699.86,698.72,0.28623769]
[1735088664062,2.16160781,699.85,698.72,0.28623769]
[1735088664266,2.16160781,699.84,698.72,0.28623769]
[1735088664565,2.16160781,699.83,698.72,0.28623769]
[1735088664765,2.16160781,699.82,698.72,0.28623769]
[1735088664967,0.28553888,700.43,698.72,0.28623769]
[1735088664968,2.16160781,699.81,698.72,0.28623769]
[1735088665162,2.16160781,699.8,698.72,0.28623769]
[1735088665365,2.16160781,699.79,698.72,0.28623769]
[1735088665567,2.16160781,699.78,698.72,0.28623769]
[1735088665761,0.28553888,700.43,698.72,0.28623769]
[1735088665762,2.16160781,699.77,698.72,0.28623769]
[1735088665965,2.16160781,699.76,698.72,0.28623769]
[1735088666166,2.16160781,699.75,698.72,0.28623769]
[1735088666367,0.28553888,700.43,698.72,0.28623769]
[1735088666368,2.16160781,699.74,698.72,0.28623769]
[1735088666567,2.16160781,699.73,698.72,0.28623769]
[1735088666768,2.16160781,699.72,698.72,0.28623769]
[1735088666966,1.27892477,699.71,698.72,0.28623769]
[1735088667161,1.27892477,699.7,698.72,0.28623769]
[1735088667362,0.28553888,700.43,698.72,0.28623769]
[1735088667565,2.16067776,700.42,698.72,0.28623769]
[1735088667762,2.16067776,700.41,698.72,0.28623769]
[1735088667966,2.16067776,700.4,698.72,0.28623769]
[1735088668266,0.28553888,700.43,698.72,0.28623769]
[1735088668267,2.16067776,700.39,698.72,0.28623769]
[1735088668465,2.16067776,700.38,698.72,0.28623769]
[1735088668667,2.16067776,700.37,698.72,0.28623769]
[1735088668868,2.16067776,700.36,698.72,0.28623769]
[1735088669069,2.16067776,700.35,698.72,0.28623769]
[1735088669264,1.27823349,700.34,698.72,0.28623769]
[1735088669569,0.28553888,700.43,698.72,0.28623769]
[1735088669570,2.16060842,700.33,698.72,0.28623769]
[1735088669868,0.28553888,700.43,698.72,0.28623769]
[1735088669869,2.16053758,700.32,698.72,0.28623769]
[1735088670069,0.28553888,700.43,698.72,0.28623769]
[1735088670070,2.16053758,700.31,698.72,0.28623769]
[1735088670262,2.16053758,700.3,698.72,0.28623769]
[1735088670463,2.16053758,700.29,698.72,0.28623769]
[1735088670667,2.16053758,700.28,698.72,0.28623769]
[1735088670868,0.28553888,700.43,698.72,0.28623769]
[1735088670869,2.16053758,700.27,698.72,0.28623769]
[1735088671166,2.16053758,700.26,698.72,0.28623769]
[1735088671365,2.16053758,700.25,698.72,0.28623769]
[1735088671565,2.16041329,700.24,698.72,0.28623769]
[1735088671866,2.16041329,700.23,698.72,0.28623769]
[1735088672064,2.16041329,700.22,698.72,0.28623769]
[1735088672269,2.16041329,700.21,698.72,0.28623769]
[1735088672469,2.16041329,700.2,698.72,0.28623769]
[1735088672772,2.16041329,700.19,698.72,0.28623769]
[1735088673067,2.16041329,700.18,698.72,0.28623769]
[1735088673270,2.16041329,700.17,698.72,0.28623769]
[1735088673468,2.16041329,700.16,698.72,0.28623769]
[1735088673666,2.16041329,700.15,698.72,0.28623769]
[1735088673868,2.16041329,700.14,698.72,0.28623769]
[1735088674068,2.16041329,700.13,698.72,0.28623769]
[1735088674266,2.16041329,700.12,698.72,0.28623769]
[1735088674467,2.16041329,700.11,698.72,0.28623769]
[1735088674665,2.16041329,700.1,698.72,0.28623769]
[1735088674870,2.16041329,700.09,698.72,0.28623769]
[1735088675065,2.16041329,700.08,698.72,0.28623769]
[1735088675370,0.28553888,700.43,698.72,0.28623769]
[1735088675371,2.16014624,700.07,698.72,0.28623769]
[1735088675564,2.16014624,700.06,698.72,0.28623769]
[1735088675767,2.16014624,700.05,698.72,0.28623769]
[1735088675971,2.16014624,700.04,698.72,0.28623769]
[1735088676171,2.16014624,700.03,698.73,1.06947192]
[1735088676469,2.16014624,700.02,698.73,1.06947192]
[1735088676669,2.16014624,700.01,698.73,1.06947192]
[1735088676871,2.16014624,700.0,698.75,0.2862254]
[1735088677167,2.16014624,699.99,698.75,0.2862254]
[1735088677365,2.16014624,699.98,698.75,0.2862254]
[1735088677671,2.16014624,699.97,698.75,0.2862254]
[1735088677870,2.16014624,699.96,698.75,0.2862254]
[1735088678063,2.16014624,699.95,698.75,0.2862254]
[1735088678269,2.16014624,699.94,698.75,0.2862254]
[1735088678467,2.15941607,699.93,698.75,0.2862254]
[1735088678667,2.15941607,699.92,698.75,0.2862254]
[1735088678865,2.15936187,699.91,698.75,0.2862254]
[1735088679065,2.15936187,699.9,698.75,0.2862254]
[1735088679269,2.15936187,699.89,698.75,0.2862254]
[1735088679470,2.15936187,699.88,698.75,0.2862254]
[1735088679671,2.15936187,699.87,698.75,0.2862254]
[1735088679872,2.15339479,699.86,698.75,0.2862254]
[1735088680065,2.15339479,699.85,698.75,0.2862254]
[1735088680269,1.27747493,699.84,698.75,0.2862254]
[1735088680469,1.27747493,699.83,698.75,0.2862254]
[1735088680666,1.27747493,699.82,698.75,0.2862254]
[1735088680871,1.27747493,699.81,698.75,0.2862254]
[1735088681069,1.27747493,699.8,698.75,0.2862254]
[1735088681372,1.27747493,699.79,698.75,0.2862254]
[1735088681673,1.27747493,699.78,698.75,0.2862254]
[1735088681875,1.27747493,699.77,698.75,0.2862254]
[1735088682080,0.28553888,700.43,698.75,0.2862254]
[1735088682267,1.54006213,700.42,698.75,0.2862254]
[1735088682470,1.54006213,700.41,698.75,0.2862254]
[1735088682672,0.28553888,700.43,698.75,0.2862254]
[1735088682673,1.54006213,700.4,698.76,1.06947192]
[1735088682871,1.54006213,700.39,698.76,1.06947192]
[1735088683075,1.54006213,700.38,698.76,1.06947192]
[1735088683275,1.54006213,700.37,698.76,1.06947192]
[1735088683476,1.2773515,700.36,698.77,1.06947192]
[1735088683777,1.2773515,700.35,698.77,1.06947192]
[1735088683973,1.2773515,700.34,698.77,1.06947192]
[1735088684276,1.2773515,700.33,698.79,1.06947192]
[1735088684572,1.2773515,700.32,698.79,1.06947192]
[1735088684775,1.2773515,700.31,698.79,1.06947192]
[1735088684975,1.2773515,700.3,698.79,1.06947192]
[1735088685171,1.2773515,700.29,698.79,1.06947192]
[1735088685370,0.28553888,700.43,698.81,1.06947192]
[1735088685371,1.2773515,700.28,698.81,1.06947192]
[1735088685570,1.2773515,700.27,698.81,1.06947192]
[1735088685870,1.2773515,700.26,698.81,1.06947192]
[1735088686070,1.2773515,700.25,698.81,1.06947192]
[1735088686276,1.2773515,700.24,698.83,1.06947192]
[1735088686475,1.2773515,700.23,698.83,1.06947192]
[1735088686776,1.2773515,700.22,698.83,1.06947192]
[1735088686972,1.2773515,700.21,698.83,1.06947192]
[1735088687168,1.2773515,700.2,698.83,1.06947192]
[1735088687371,1.27721262,700.19,698.84,1.06947192]
[1735088687673,1.27721262,700.18,698.84,1.06947192]
[1735088687873,1.27722086,700.17,698.84,1.06947192]
[1735088688073,1.27722086,700.16,698.84,1.06947192]
[1735088688274,1.27722086,700.15,698.84,1.06947192]
[1735088688470,1.27722086,700.14,698.84,1.06947192]
[1735088688674,1.27722086,700.13,698.84,1.06947192]
[1735088688876,1.27722086,700.12,698.86,0.28618035]
[1735088689070,1.27722086,700.11,698.86,0.28618035]
[1735088689278,1.27722086,700.1,698.99,1.06947192]
[1735088689472,1.27730134,700.09,699.0,0.28612303]
[1735088689675,1.27730134,700.08,699.0,0.28612303]
[1735088689978,1.27730134,700.07,699.01,1.06947192]
[1735088690171,1.27730134,700.06,699.01,1.06947192]
[1735088690372,1.27730134,700.05,699.01,1.06947192]
[1735088690675,1.27730134,700.04,699.01,1.06947192]
[1735088690876,1.27730134,700.03,699.01,1.06947192]
[1735088691077,1.27730134,700.02,699.01,1.06947192]
[1735088691272,1.27730134,700.01,699.02,0.28611484]
[1735088691474,1.27730134,700.0,699.02,0.28611484]
[1735088691674,1.27730134,699.99,699.02,0.28611484]
[1735088691872,1.27730134,699.98,699.02,0.28611484]
[1735088692076,2.15900294,699.97,699.02,0.28611484]
[1735088692274,2.15900294,699.96,699.02,0.28611484]
[1735088692478,2.15900294,699.95,699.02,0.28611484]
[1735088692775,2.15900294,699.94,699.02,0.28611484]
[1735088692977,2.15900294,699.93,699.02,0.28611484]
[1735088693175,2.15900294,699.92,699.02,0.28611484]
[1735088693481,0.8817016,699.91,699.02,0.28611484]
[1735088693675,2.15928382,699.9,699.02,0.28611484]
[1735088693875,2.15928382,699.89,699.02,0.28611484]
[1735088694081,2.15928382,699.88,699.02,0.28611484]
[1735088694280,2.15928382,699.87,699.02,0.28611484]
[1735088694480,2.15928382,699.86,699.02,0.28611484]
[1735088694676,2.15928382,699.85,699.02,0.28611484]
[1735088694877,2.15928382,699.84,699.02,0.28611484]
[1735088695177,2.15928382,699.83,699.02,0.28611484]
[1735088695375,1.27758222,699.82,699.02,0.28611484]
[1735088695579,1.27758222,699.81,699.02,0.28611484]
[1735088695779,1.27764859,699.8,699.02,0.28611484]
[1735088695975,0.28553888,700.43,699.02,0.28611484]
[1735088696276,2.15952389,700.42,699.02,0.28611484]
[1735088696575,1.27765898,700.41,699.02,0.28611484]
[1735088696781,2.15956852,700.4,699.02,0.28611484]
[1735088696981,0.28553888,700.43,699.02,0.28611484]
[1735088697183,1.27772458,700.39,699.02,0.28611484]
[1735088697379,2.15963378,700.38,699.02,0.28611484]
[1735088697583,2.15963378,700.37,699.02,0.28611484]
[1735088697782,2.15963378,700.36,699.02,0.28611484]
[1735088697979,2.15963378,700.35,699.02,0.28611484]
[1735088698185,2.15963378,700.34,699.02,0.28611484]
[1735088698483,2.15963378,700.33,699.02,0.28611484]
[1735088698680,2.15963378,700.32,699.02,0.28611484]
[1735088698885,2.16002196,700.31,699.02,0.28611484]
[1735088699082,2.16002196,700.3,699.02,0.28611484]
[1735088699279,0.28553888,700.43,699.02,0.28611484]
[1735088699280,2.16002196,700.29,699.02,0.28611484]
[1735088699483,2.16002196,700.28,699.02,0.28611484]
[1735088699785,2.16015531,700.27,699.02,0.28611484]
[1735088699987,2.16015531,700.26,699.02,0.28611484]
[1735088700286,2.16015531,700.25,699.02,0.28611484]
[1735088700485,2.16015531,700.24,699.02,0.28611484]
[1735088700683,2.16015531,700.23,699.02,0.28611484]
[1735088700985,2.16015531,700.22,699.02,0.28611484]
[1735088701179,2.16015531,700.21,699.02,0.28611484]
[1735088701379,2.16015531,700.2,699.02,0.28611484]
[1735088701586,2.16015531,700.19,699.02,0.28611484]
[1735088701786,2.1606106,700.18,699.02,0.28611484]
[1735088702086,2.1606106,700.17,699.02,0.28611484]
[1735088702288,2.1606106,700.16,699.02,0.28611484]
[1735088702581,2.1606106,700.15,699.02,0.28611484]
[1735088702785,2.1606106,700.14,699.02,0.28611484]
[1735088702987,2.1606106,700.13,699.02,0.28611484]
[1735088703285,2.1606106,700.12,699.02,0.28611484]
[1735088703486,2.1606106,700.11,699.02,0.28611484]
[1735088703780,2.1606106,700.1,699.02,0.28611484]
[1735088703981,2.1606106,700.09,699.02,0.28611484]
[1735088704185,2.1606106,700.08,699.02,0.28611484]
[1735088704480,2.1606106,700.07,699.02,0.28611484]
[1735088704686,0.88286132,700.06,699.02,0.28611484]
[1735088704886,2.16195629,700.05,699.02,0.28611484]
[1735088705187,2.16192427,700.04,699.02,0.28611484]
[1735088705487,2.16192427,700.03,699.02,0.28611484]
[1735088705686,2.16192427,700.02,699.02,0.28611484]
[1735088705986,2.16192427,700.01,699.02,0.28611484]
[1735088706179,2.16192427,700.0,699.02,0.28611484]
[1735088706380,2.16192427,699.99,699.02,0.28611484]
[1735088706687,2.16192427,699.98,699.02,0.28611484]
[1735088706880,2.16192427,699.97,699.02,0.28611484]
[1735088707081,2.16192427,699.96,699.02,0.28611484]
[1735088707284,2.16192427,699.95,699.02,0.28611484]
[1735088707483,2.16192427,699.94,699.02,0.28611484]
[1735088707685,2.16247683,699.93,699.02,0.28611484]
[1735088707988,2.16247683,699.92,699.02,0.28611484]
[1735088708182,2.16247683,699.91,699.02,0.28611484]
[1735088708384,2.16247683,699.9,699.02,0.28611484]
[1735088708586,2.16247683,699.89,699.02,0.28611484]
[1735088708786,2.16247683,699.88,699.02,0.28611484]
[1735088708988,2.16247683,699.87,699.02,0.28611484]
[1735088709286,0.28553888,700.43,699.02,0.28611484]
[1735088709287,2.16247683,699.86,699.02,0.28611484]
[1735088709486,2.16247683,699.85,699.02,0.28611484]
[1735088709686,2.16247683,699.84,699.02,0.28611484]
[1735088709987,2.16247683,699.83,699.02,0.28611484]
[1735088710187,2.16247683,699.82,699.02,0.28611484]
[1735088710387,2.16247683,699.81,699.02,0.28611484]
[1735088710588,1.27907667,699.8,699.02,0.28611484]
[1735088710790,2.16279396,699.79,699.02,0.28611484]
[1735088710984,2.16279396,699.78,699.02,0.28611484]
[1735088711184,2.16279396,699.77,699.02,0.28611484]
[1735088711387,2.16279396,699.76,699.02,0.28611484]
[1735088711588,2.16279396,699.75,699.02,0.28611484]
[1735088711788,2.16279396,699.74,699.02,0.28611484]
[1735088711989,2.16279396,699.73,699.02,0.28611484]
[1735088712185,2.16279396,699.72,699.02,0.28611484]
[1735088712389,2.16279396,699.71,699.02,0.28611484]
[1735088712588,2.16279396,699.7,699.02,0.28611484]
[1735088712782,2.16279396,699.69,699.02,0.28611484]
[1735088712984,2.16279396,699.68,699.02,0.28611484]
[1735088713185,2.16279396,699.67,699.02,0.28611484]
[1735088713385,1.27907667,699.66,699.02,0.28611484]
[1735088713586,1.28055773,699.65,699.02,0.28611484]
[1735088713785,1.28055773,699.64,699.02,0.28611484]
[1735088713989,0.28553888,700.43,699.02,0.28611484]
[1735088714184,2.16446189,700.42,699.02,0.28611484]
[1735088714390,2.16446189,700.41,699.02,0.28611484]
[1735088714590,2.16446189,700.4,699.02,0.28611484]
[1735088714792,2.16446189,700.39,699.02,0.28611484]
[1735088714991,2.16446189,700.38,699.02,0.28611484]
[1735088715189,2.16446189,700.37,699.02,0.28611484]
[1735088715385,2.16446189,700.36,699.02,0.28611484]
[1735088715586,2.16446189,700.35,699.02,0.28611484]
[1735088715790,2.16446189,700.34,699.02,0.28611484]
[1735088715985,0.28553888,700.43,699.02,0.28611484]
[1735088716190,2.42745933,700.42,699.02,0.28611484]
[1735088716391,2.42745933,700.41,699.02,0.28611484]
[1735088716685,0.26273186,700.4,699.02,0.28611484]
[1735088716991,2.16467414,700.39,699.02,0.28611484]
[1735088717192,0.28553888,700.43,699.02,0.28611484]
[1735088717193,2.16467414,700.38,699.02,0.28611484]
[1735088717392,2.16467414,700.37,699.02,0.28611484]
[1735088717590,2.16467414,700.36,699.02,0.28611484]
[1735088717791,2.16467414,700.35,699.02,0.28611484]
[1735088717984,2.16467414,700.34,699.02,0.28611484]
[1735088718190,2.16467414,700.33,699.02,0.28611484]
[1735088718387,2.16467414,700.32,699.02,0.28611484]
[1735088718692,2.16467414,700.31,699.02,0.28611484]
[1735088718893,2.16461667,700.3,699.02,0.28611484]
[1735088719091,1.28064447,700.29,699.02,0.28611484]
[1735088719292,2.16461667,700.28,699.02,0.28611484]
[1735088719492,2.16461667,700.27,699.02,0.28611484]
[1735088719690,2.16461667,700.26,699.02,0.28611484]
[1735088719885,2.16459186,700.25,699.02,0.28611484]
[1735088720089,2.16459186,700.24,699.02,0.28611484]
[1735088720291,0.28553888,700.43,699.02,0.28611484]
[1735088720292,2.16459186,700.23,699.02,0.28611484]
[1735088720590,2.16459186,700.22,699.02,0.28611484]
[1735088720795,2.16459186,700.21,699.02,0.28611484]
[1735088720987,2.16459186,700.2,699.02,0.28611484]
[1735088721187,2.16459186,700.19,699.02,0.28611484]
[1735088721388,2.16459186,700.18,699.02,0.28611484]
[1735088721595,2.16459186,700.17,699.02,0.28611484]
[1735088721795,2.16459186,700.16,699.02,0.28611484]
[1735088721992,2.16459186,700.15,699.02,0.28611484]
[1735088722192,2.16459186,700.14,699.02,0.28611484]
[1735088722394,0.28553888,700.43,699.02,0.28611484]
[1735088722395,2.16459186,700.13,699.02,0.28611484]
[1735088722594,2.16459186,700.12,699.02,0.28611484]
[1735088722793,2.16459186,700.11,699.02,0.28611484]
[1735088722990,0.28553888,700.43,699.02,0.28611484]
[1735088722991,2.1645278,700.1,699.02,0.28611484]
[1735088723195,2.1645278,700.09,699.02,0.28611484]
[1735088723395,0.28553888,700.43,699.02,0.28611484]
[1735088723696,2.42718479,700.42,699.02,0.28611484]
[1735088723990,2.42718479,700.41,699.02,0.28611484]
[1735088724195,2.42718479,700.4,699.02,0.28611484]
[1735088724494,2.42718554,700.39,699.02,0.28611484]
[1735088724694,2.42718554,700.38,699.02,0.28611484]
[1735088724895,2.42718554,700.37,699.02,0.28611484]
[1735088725095,2.42718554,700.36,699.02,0.28611484]
[1735088725293,2.42718554,700.35,699.02,0.28611484]
[1735088725490,2.16445294,700.34,699.02,0.28611484]
[1735088725696,2.16445294,700.33,699.02,0.28611484]
[1735088725997,2.16443182,700.32,699.02,0.28611484]
[1735088726292,2.16443182,700.31,699.02,0.28611484]
[1735088726491,2.16443182,700.3,699.02,0.28611484]
[1735088726796,2.16443182,700.29,699.02,0.28611484]
[1735088726998,2.16443182,700.28,699.02,0.28611484]
[1735088727296,2.16443182,700.27,699.02,0.28611484]
[1735088727497,2.16443182,700.26,699.02,0.28611484]
[1735088727697,2.16443182,700.25,699.02,0.28611484]
[1735088727997,2.16443182,700.24,699.02,0.28611484]
[1735088728199,2.16443182,700.23,699.02,0.28611484]
[1735088728401,2.16443182,700.22,699.02,0.28611484]
[1735088728602,2.16443182,700.21,699.02,0.28611484]
[1735088728801,2.16443182,700.2,699.02,0.28611484]
[1735088729002,1.28045788,700.19,699.02,0.28611484]
[1735088729202,2.16431879,700.18,699.02,0.28611484]
[1735088729402,2.16431879,700.17,699.02,0.28611484]
[1735088729602,2.16431879,700.16,699.02,0.28611484]
[1735088729796,2.16431879,700.15,699.02,0.28611484]
[1735088729998,2.16431879,700.14,699.02,0.28611484]
[1735088730198,2.16431879,700.13,699.02,0.28611484]
[1735088730399,0.28553888,700.43,699.02,0.28611484]
[1735088730400,2.16431879,700.12,699.02,0.28611484]
[1735088730698,2.16431879,700.11,699.02,0.28611484]
[1735088730902,2.16431879,700.1,699.02,0.28611484]
[1735088731103,2.16431879,700.09,699.02,0.28611484]
[1735088731295,2.16431879,700.08,699.02,0.28611484]
[1735088731495,2.16431879,700.07,699.02,0.28611484]
[1735088731701,2.16431879,700.06,699.02,0.28611484]
[1735088731898,2.16431879,700.05,699.02,0.28611484]
[1735088732101,2.16431454,700.04,699.02,0.28611484]
[1735088732299,2.16431454,700.03,699.02,0.28611484]
[1735088732600,2.16427909,700.02,699.02,0.28611484]
[1735088732801,2.16427909,700.01,699.02,0.28611484]
[1735088733004,2.16427909,700.0,699.02,0.28611484]
[1735088733206,2.16427909,699.99,699.02,0.28611484]
[1735088733505,2.16427909,699.98,699.02,0.28611484]
[1735088733707,2.16427909,699.97,699.02,0.28611484]
[1735088733906,2.16427909,699.96,699.02,0.28611484]
[1735088734108,0.28553888,700.43,699.02,0.28611484]
[1735088734305,1.14651875,700.42,699.02,0.28611484]
[1735088734606,2.42695508,700.41,699.02,0.28611484]
[1735088734906,2.42695508,700.4,699.02,0.28611484]
[1735088735204,2.42695259,700.39,699.02,0.28611484]
[1735088735403,2.42695234,700.38,699.02,0.28611484]
[1735088735604,2.42695234,700.37,699.02,0.28611484]
[1735088735806,2.16422273,700.36,699.02,0.28611484]
[1735088736004,2.16422273,700.35,699.02,0.28611484]
[1735088736205,2.16422273,700.34,699.02,0.28611484]
[1735088736405,2.16422273,700.33,699.02,0.28611484]
[1735088736599,2.16422273,700.32,699.02,0.28611484]
[1735088736803,2.16422273,700.31,699.02,0.28611484]
[1735088737005,2.16422273,700.3,699.02,0.28611484]
[1735088737206,2.16422273,700.29,699.02,0.28611484]
[1735088737402,0.28553888,700.43,699.02,0.28611484]
[1735088737403,2.16422273,700.28,699.02,0.28611484]
[1735088737600,2.16422273,700.27,699.02,0.28611484]
[1735088737801,2.16422273,700.26,699.02,0.28611484]
[1735088738003,2.16419549,700.25,699.02,0.28611484]
[1735088738202,2.16419549,700.24,699.02,0.28611484]
[1735088738405,2.16419549,700.23,699.02,0.28611484]
[1735088738605,2.16419549,700.22,699.02,0.28611484]
[1735088738809,2.16419549,700.21,699.02,0.28611484]
[1735088739007,2.16419549,700.2,699.02,0.28611484]
[1735088739209,2.16419549,700.19,699.02,0.28611484]
[1735088739409,0.28553888,700.43,699.02,0.28611484]
[1735088739410,2.16419549,700.18,699.02,0.28611484]
[1735088739611,2.16419549,700.17,699.02,0.28611484]
[1735088739810,2.16419549,700.16,699.02,0.28611484]
[1735088740006,2.16419549,700.15,699.02,0.28611484]
[1735088740205,2.16419549,700.14,699.02,0.28611484]
[1735088740410,2.16419549,700.13,699.02,0.28611484]
[1735088740606,2.16419549,700.12,699.02,0.28611484]
[1735088740810,2.16419549,700.11,699.02,0.28611484]
[1735088741006,0.88378776,700.1,699.02,0.28611484]
[1735088741209,2.16419038,700.09,699.02,0.28611484]
[1735088741406,0.28553888,700.43,699.02,0.28611484]
[1735088741607,1.28040638,700.08,699.02,0.28611484]